fUSD/lending_fUSD_20260419
["ID","MTS","AMOUNT","RATE_DAILY","PERIOD"]
[420822194,1776584594999,-1000.0,8.868e-05,2]
[420822195,1776584595129,-1000.0,8.868e-05,2]
[420822196,1776584595223,-1000.0,8.868e-05,2]
[420822197,1776584595634,-1000.0,8.868e-05,2]
[420822198,1776584597794,-473.6441117,8.868e-05,2]
[420822199,1776584597816,-526.3558883,8.868e-05,2]
[420822200,1776584597853,-1000.0,8.868e-05,2]
[420822201,1776584597889,-1000.0,8.868e-05,2]
[420822202,1776584597924,-1000.0,8.868e-05,2]
[420822203,1776584597951,-1000.0,8.868e-05,2]
[420822204,1776584597984,-1000.0,8.868e-05,2]
[420822205,1776584598255,-957.6992117,8.868e-05,2]
[420822206,1776584598278,-42.3007883,8.868e-05,2]
[420822207,1776584598656,-1000.0,8.868e-05,2]
[420822208,1776584599111,-1000.0,8.868e-05,2]
[420822209,1776584599578,-457.6992117,8.868e-05,2]
[420822210,1776584599600,-250.0,8.884e-05,2]
[420822211,1776584599624,-150.0,8.9e-05,2]
[420822212,1776584599647,-142.3007883,8.926e-05,2]
[420822213,1776584599993,-107.6992117,8.926e-05,2]
[420822214,1776584600015,-500.0,8.943e-05,2]
[420822215,1776584600046,-157.61622061,8.943e-05,2]
[420822216,1776584600068,-234.68456769,8.943e-05,2]
[420822217,1776584600444,-266.23771368,8.943e-05,2]
[420822218,1776584600467,-171.31417741,8.943e-05,2]
[420822219,1776584600490,-500.77330831,8.943e-05,2]
[420822220,1776584600512,-61.6748006,8.943e-05,2]
[420822221,1776584600752,-438.53425272,8.943e-05,2]
[420822222,1776584600775,-500.0,8.943e-05,2]
[420822223,1776584600797,-61.46574728,8.943e-05,2]
[420822224,1776584601249,-438.53425272,8.943e-05,2]
[420822225,1776584601272,-502.42127331,8.943e-05,2]
[420822226,1776584601296,-59.04447397,8.943e-05,2]
[420822227,1776584601717,-440.95552603,8.943e-05,2]
[420822228,1776584601743,-500.0,8.943e-05,2]
[420822229,1776584601767,-59.04447397,8.943e-05,2]
[420822230,1776584602171,-709.47552603,8.943e-05,2]
[420822231,1776584602195,-166.45,8.952e-05,2]
[420822232,1776584602219,-124.07447397,8.965e-05,2]
[420822233,1776584602527,-26.92552603,8.965e-05,2]
[420822234,1776584602551,-973.07447397,8.967e-05,3]
[420822235,1776584603533,-120.76373307,8.967e-05,3]
[420822236,1776584603556,-879.23626693,8.967e-05,3]
[420822237,1776584604013,-214.60194011,8.967e-05,3]
[420822238,1776584604642,-785.39805989,8.967e-05,3]
[420822239,1776584604691,-308.44014715,8.967e-05,3]
[420822240,1776584604714,-250.0,8.967e-05,2]
[420822241,1776584604750,-441.55985285,8.967e-05,2]
[420822242,1776584604858,-58.44014715,8.967e-05,2]
[420822243,1776584604882,-571.30266633,8.967e-05,2]
[420822244,1776584604907,-370.25718652,8.967e-05,2]
[420822245,1776584605467,-129.74281348,8.967e-05,2]
[420822246,1776584605500,-361.62587013,8.967e-05,2]
[420822247,1776584605527,-313.12630083,8.967e-05,2]
[420822248,1776584605550,-195.50501556,8.967e-05,2]
[420822249,1776584606216,-304.49498444,8.967e-05,2]
[420822250,1776584606242,-399.43822631,8.967e-05,2]
[420822251,1776584606268,-296.06678925,8.967e-05,2]
[420822252,1776584606433,-203.93321075,8.967e-05,2]
[420822253,1776584606461,-611.50213961,8.967e-05,2]
[420822254,1776584606489,-184.56464964,8.968e-05,2]
[420822255,1776584606660,-1000.0,8.968e-05,2]
[420822256,1776584607106,-1000.0,8.968e-05,2]
[420822257,1776584607610,-1000.0,8.968e-05,2]
[420822258,1776584609664,-1000.0,8.968e-05,2]
[420822259,1776584609711,-1000.0,8.968e-05,2]
[420822260,1776584609767,-1000.0,8.968e-05,2]
[420822261,1776584610380,-1000.0,8.968e-05,2]
[420822262,1776584610818,-1000.0,8.968e-05,2]
[420822263,1776584611308,-1000.0,8.968e-05,2]
[420822264,1776584612178,-1000.0,8.968e-05,2]
[420822265,1776584612680,-1000.0,8.968e-05,2]
[420822266,1776584613121,-1000.0,8.968e-05,2]
[420822267,1776584613461,-1000.0,8.968e-05,2]
[420822268,1776584613809,-1000.0,8.968e-05,2]
[420822269,1776584614243,-1000.0,8.968e-05,2]
[420822270,1776584614594,-1000.0,8.968e-05,2]
[420822271,1776584615004,-1000.0,8.968e-05,2]
[420822272,1776584615409,-1000.0,8.968e-05,2]
[420822273,1776584615869,-1000.0,8.968e-05,2]
[420822274,1776584616310,-1000.0,8.968e-05,2]
[420822275,1776584616626,-1000.0,8.968e-05,2]
[420822276,1776584617080,-1000.0,8.968e-05,2]
[420822277,1776584617516,-1000.0,8.968e-05,2]
[420822278,1776584618174,-1000.0,8.968e-05,2]
[420822279,1776584618296,-1000.0,8.968e-05,2]
[420822280,1776584618598,-1000.0,8.968e-05,2]
[420822281,1776584619013,-1000.0,8.968e-05,2]
[420822282,1776584619447,-1000.0,8.968e-05,2]
[420822283,1776584622494,-1000.0,8.768e-05,2]
[420822284,1776584622536,-1000.0,8.768e-05,2]
[420822285,1776584622570,-1000.0,8.768e-05,2]
[420822286,1776584622600,-1000.0,8.768e-05,2]
[420822287,1776584623030,-1000.0,8.768e-05,2]
[420822288,1776584623587,-1000.0,8.768e-05,2]
[420822289,1776584624020,-1000.0,8.768e-05,2]
[420822290,1776584624324,-1000.0,8.768e-05,2]
[420822291,1776584624745,-1000.0,8.768e-05,2]
[420822292,1776584626726,-1000.0,8.768e-05,2]
[420822293,1776584627138,-1000.0,8.768e-05,2]
[420822294,1776584627476,-1000.0,8.768e-05,2]
[420822295,1776584627904,-1000.0,8.768e-05,2]
[420822296,1776584628224,-1000.0,8.768e-05,2]
[420822297,1776584628645,-1000.0,8.768e-05,2]
[420822298,1776584628967,-1000.0,8.768e-05,2]
[420822299,1776584629406,-1000.0,8.768e-05,2]
[420822300,1776584629860,-1000.0,8.768e-05,2]
[420822301,1776584630272,-1000.0,8.768e-05,2]
[420822302,1776584630789,-1000.0,8.768e-05,2]
[420822303,1776584630998,-1000.0,8.768e-05,2]
[420822304,1776584631427,-1000.0,8.768e-05,2]
[420822305,1776584631828,-1000.0,8.768e-05,2]
[420822306,1776584632145,-1000.0,8.768e-05,2]
[420822307,1776584634341,-1000.0,8.768e-05,2]
[420822308,1776584634396,-1000.0,8.768e-05,2]
[420822309,1776584634430,-1000.0,8.768e-05,2]
[420822310,1776584634464,-1000.0,8.768e-05,2]
[420822311,1776584634493,-1000.0,8.768e-05,2]
[420822312,1776584634531,-150.0,8.563e-05,2]
[420822313,1776584634556,-850.0,8.768e-05,2]
[420822314,1776584654110,-1000.0,8.768e-05,2]
[420822315,1776584655065,-1000.0,8.768e-05,2]
[420822316,1776584655592,-1000.0,8.768e-05,2]
[420822317,1776584656041,-1000.0,8.768e-05,2]
[420822318,1776584656487,-1000.0,8.768e-05,2]
[420822319,1776584656717,-1000.0,8.768e-05,2]
[420822320,1776584657079,-1000.0,8.768e-05,2]
[420822321,1776584659059,-1000.0,8.768e-05,2]
[420822322,1776584659132,-1000.0,8.768e-05,2]
[420822323,1776584661143,-1000.0,8.768e-05,2]
[420822324,1776584662789,-1000.0,8.768e-05,2]
[420822325,1776584664043,-1000.0,8.768e-05,2]
[420822326,1776584664478,-1000.0,8.768e-05,2]
[420822327,1776584664902,-1000.0,8.768e-05,2]
[420822328,1776584665366,-1000.0,8.768e-05,2]
[420822329,1776584665790,-1000.0,8.768e-05,2]
[420822330,1776584666247,-1000.0,8.768e-05,2]
[420822331,1776584666604,-1000.0,8.768e-05,2]
[420822332,1776584670993,-1000.0,8.768e-05,2]
[420822333,1776584672023,-1000.0,8.768e-05,2]
[420822334,1776584673245,-1000.0,8.768e-05,2]
[420822335,1776584677920,334.88799617,0.0003287,120]
[420822336,1776584692176,1000.0,0.00032877,120]
[420822337,1776584694982,750.87230447,0.00032548,120]
[420822338,1776584719283,1000.0,0.00032877,120]
[420822339,1776584728340,1000.0,0.00032877,120]
[420822340,1776584734244,-2277.37585576,0.000121,30]
[420822341,1776584734274,-264.42457216,0.00014,30]
[420822346,1776585031436,-150.0,8.063e-05,2]
[420822347,1776585031445,-150.0,8.063e-05,2]
[420822348,1776585031457,-620.12817705,8.19e-05,2]
[420822349,1776585031470,-5815.79182295,8.19e-05,2]
[420822350,1776585031480,-158.49,8.219e-05,2]
[420822351,1776585031489,-150.0,8.22e-05,2]
[420822352,1776585031499,-1840.17,8.509e-05,2]
[420822353,1776585031509,-150.0,8.566e-05,2]
[420822354,1776585031518,-190.0,8.767e-05,2]
[420822355,1776585031528,-1200.0,8.767e-05,2]
[420822356,1776585031538,-39108.6169,8.768e-05,2]
[420822357,1776585031547,-150.0,8.863e-05,2]
[420822358,1776585031557,-2500.0,8.868e-05,2]
[420822359,1776585031567,-15660.57611931,8.868e-05,2]
[420822360,1776585031694,-24782.27499549,8.868e-05,2]
[420822361,1776585031706,-6912.19332816,8.868e-05,2]
[420822385,1776585037883,-391.08300268,8.868e-05,2]
[420822440,1776585039775,-6256.54339244,8.868e-05,2]
[420822441,1776585039787,-432.21206192,8.868e-05,2]
[420822442,1776585039797,-250.0,8.869e-05,2]
[420822443,1776585039806,-237.43388326,8.869e-05,2]
[420822444,1776585039815,-1113.44470687,8.869e-05,2]
[420822466,1776585042331,-3852.0,8.869e-05,2]
[420822490,1776585046374,-34.55529313,8.869e-05,2]
[420822492,1776585046383,-250.0,8.869e-05,2]
[420822493,1776585046393,-173.43152846,8.9e-05,3]
[420822496,1776585046409,-926.56847154,8.9e-05,3]
[420822498,1776585046418,-150.0,8.942e-05,2]
[420822500,1776585046427,-500.0,8.943e-05,2]
[420822502,1776585046437,-500.0,8.943e-05,2]
[420822504,1776585046446,-7499.18963501,9e-05,2]
[420822506,1776585046455,-1470.43566426,9e-05,2]
[420822508,1776585046466,-3529.56433574,9e-05,2]
[420822510,1776585046475,-5000.0,9e-05,2]
[420822512,1776585046485,-3917.96334112,9e-05,2]
[420822514,1776585046526,-1082.03665888,9e-05,2]
[420822516,1776585046535,-5000.0,9e-05,2]
[420822517,1776585046544,-1802.87719069,9e-05,3]
[420822518,1776585046556,-497.12280931,9e-05,3]
[420822519,1776585046567,-578.20924308,9.034e-05,2]
[420822520,1776585046576,-187.78006525,9.034e-05,2]
[420822522,1776585046585,-3124.06678238,9.034e-05,2]
[420822525,1776585046597,-2257.94841774,9.034e-05,2]
[420822528,1776585046608,-2615.54615598,9.034e-05,2]
[420822531,1776585046617,-500.0,9.034e-05,2]
[420822533,1776585046626,-201.94706963,9.034e-05,2]
[420822534,1776585046635,-2000.0,9.034e-05,2]
[420822536,1776585046645,-201.93286099,9.034e-05,2]
[420822538,1776585046654,-1575.16048892,9.034e-05,2]
[420822540,1776585046665,-424.83951108,9.034e-05,2]
[420822541,1776585046675,-2000.0,9.034e-05,2]
[420822542,1776585046684,-151.0,9.034e-05,2]
[420822543,1776585046693,-1000.0,9.034e-05,2]
[420822545,1776585046703,-743.50770149,9.034e-05,2]
[420822546,1776585046712,-174.61919141,9.034e-05,2]
[420822548,1776585046721,-227.34163157,9.034e-05,2]
[420822549,1776585046730,-235.75327194,9.034e-05,2]
[420822551,1776585046740,-392.43475643,9.034e-05,2]
[420822552,1776585046750,-668.65185757,9.034e-05,2]
[420822553,1776585046758,-201.93286099,9.034e-05,2]
[420822554,1776585046768,-279.9045709,9.034e-05,2]
[420822555,1776585046778,-150.0,9.08e-05,2]
[420822556,1776585046787,-150.0,9.08e-05,2]
[420822557,1776585046796,-211.03849977,9.08e-05,2]
[420822558,1776585046806,-500.0,9.08e-05,2]
[420822559,1776585046815,-150.0,9.08e-05,2]
[420822560,1776585046825,-150.0,9.08e-05,2]
[420822561,1776585046834,-500.0,9.08e-05,2]
[420822562,1776585046844,-208.14097972,9.08e-05,2]
[420822563,1776585046855,-500.0,9.08e-05,2]
[420822564,1776585046864,-150.0,9.08e-05,2]
[420822565,1776585046876,-270.17768635,9.08e-05,2]
[420822566,1776585046887,-150.0,9.08e-05,2]
[420822567,1776585046897,-170.8176538,9.08e-05,2]
[420822568,1776585046907,-500.0,9.089e-05,2]
[420822569,1776585046916,-151.0,9.089e-05,2]
[420822570,1776585046925,-151.0,9.144e-05,2]
[420822571,1776585046935,-394.67,9.163e-05,2]
[420822572,1776585046944,-151.0,9.199e-05,2]
[420822573,1776585046953,-150.0,9.2e-05,2]
[420822574,1776585046962,-768.52,9.217e-05,2]
[420822575,1776585046973,-206.49407408,9.217e-05,2]
[420822576,1776585046982,-500.0,9.217e-05,2]
[420822577,1776585046992,-500.0,9.217e-05,2]
[420822578,1776585047001,-500.0,9.217e-05,2]
[420822579,1776585047011,-242.27845498,9.217e-05,2]
[420822580,1776585047020,-151.0,9.254e-05,2]
[420822581,1776585047029,-150.0,9.289e-05,2]
[420822582,1776585047039,-166.45,9.293e-05,2]
[420822583,1776585047050,-151.0,9.309e-05,2]
[420822584,1776585047060,-151.0,9.364e-05,2]
[420822585,1776585047070,-151.0,9.419e-05,2]
[420822586,1776585047081,-150.0,9.42e-05,2]
[420822587,1776585047092,-500.0,9.443e-05,2]
[420822588,1776585047103,-305.52736146,9.443e-05,2]
[420822589,1776585047112,-500.0,9.443e-05,2]
[420822591,1776585047122,-500.0,9.443e-05,2]
[420822593,1776585047131,-500.0,9.443e-05,2]
[420822594,1776585047140,-160.6111779,9.443e-05,2]
[420822596,1776585047149,-164.63574549,9.443e-05,2]
[420822597,1776585047158,-500.0,9.443e-05,2]
[420822598,1776585047168,-500.0,9.443e-05,2]
[420822600,1776585047178,-500.44215231,9.443e-05,2]
[420822602,1776585047187,-500.0,9.443e-05,2]
[420822604,1776585047197,-500.31535496,9.443e-05,2]
[420822605,1776585047206,-88913.04859627,9.47e-05,2]
[420822609,1776585047324,-2658.56911023,9.47e-05,2]
[420822610,1776585047346,-11010.40213444,9.47e-05,2]
[420822611,1776585047356,-1316.08552112,9.47e-05,2]
[420822612,1776585047367,-4647.14049163,9.47e-05,2]
[420822613,1776585047379,-4432.42927438,9.47e-05,2]
[420822616,1776585109340,1000.0,0.00032877,120]
[420822617,1776585117617,1000.0,0.00032877,120]
[420822618,1776585171205,1000.0,0.00032877,120]
[420822619,1776585182842,1000.0,0.00032877,120]
[420822620,1776585192374,1000.0,0.00032877,120]
[420822621,1776585373199,1000.0,0.00032,120]
[420822622,1776585411024,2813.0,0.000328,120]
[420822623,1776585486874,1000.0,0.00032877,120]
[420822624,1776585496601,1000.0,0.00032877,120]
[420822625,1776585521039,1000.0,0.00032877,120]
[420822626,1776585534427,1000.0,0.00032877,120]
[420822627,1776585545514,1000.0,0.00032877,120]
[420822628,1776585564584,1000.0,0.00032877,120]
[420822629,1776585582689,1000.0,0.00032877,120]
[420822630,1776585609485,1474.0,0.00032877,120]
[420822633,1776585621930,500.0,0.00032876,120]
[420822636,1776585662167,-150.0,8.468e-05,2]
[420822637,1776585662197,-319.1468,8.668e-05,2]
[420822638,1776585669155,150.0,8.467e-05,2]
[420822639,1776585669314,-150.0,8.676e-05,2]
[420822640,1776585669342,-1200.0,8.842e-05,2]
[420822641,1776585669369,-500.0,8.843e-05,2]
[420822642,1776585669400,-501.12779695,8.843e-05,2]
[420822643,1776585669429,-500.0,8.843e-05,2]
[420822644,1776585669454,-169.85069261,8.843e-05,2]
[420822645,1776585669483,-500.0,8.843e-05,2]
[420822646,1776585669510,-500.0,8.843e-05,2]
[420822647,1776585669538,-500.0,8.843e-05,2]
[420822648,1776585669565,-502.71580444,8.843e-05,2]
[420822649,1776585669591,-150.0,8.866e-05,2]
[420822650,1776585669619,-500.0,8.867e-05,2]
[420822651,1776585669649,-500.0,8.867e-05,2]
[420822652,1776585669678,-219.18841058,8.867e-05,2]
[420822653,1776585669707,-428.05149773,8.867e-05,2]
[420822654,1776585669734,-599.91186643,8.867e-05,2]
[420822655,1776585669764,-479.60675841,8.867e-05,2]
[420822656,1776585669793,-150.0,8.867e-05,2]
[420822657,1776585669820,-150.0,8.867e-05,2]
[420822658,1776585669855,-500.0,8.867e-05,2]
[420822659,1776585669889,-500.0,8.867e-05,2]
[420822660,1776585669922,-500.0,8.867e-05,2]
[420822661,1776585669958,-500.0,8.867e-05,2]
[420822662,1776585669992,-500.0,8.867e-05,2]
[420822663,1776585670026,-500.0,8.867e-05,2]
[420822664,1776585670060,-500.0,8.867e-05,2]
[420822665,1776585670094,-500.0,8.867e-05,2]
[420822666,1776585670126,-500.0,8.867e-05,2]
[420822667,1776585670161,-500.0,8.867e-05,2]
[420822668,1776585670195,-500.0,8.867e-05,2]
[420822669,1776585670231,-500.0,8.867e-05,2]
[420822670,1776585670265,-199.54717285,8.867e-05,2]
[420822671,1776585716794,500.0,0.00032192,120]
[420822672,1776585736512,150.0,8.48e-05,2]
[420822673,1776585782474,500.0,0.00032877,120]
[420822674,1776585789698,500.0,0.00032877,120]
[420822675,1776585795830,500.0,0.00032877,120]
[420822676,1776585802156,500.0,0.00032877,120]
[420822677,1776585803570,150.0,8.423e-05,2]
[420822678,1776585811227,500.0,0.00032877,120]
[420822679,1776585816599,270.61,0.0003269,120]
[420822680,1776585817554,500.0,0.00032877,120]
[420822681,1776585823611,500.0,0.00032877,120]
[420822682,1776585828393,2000.0,8.219e-05,2]
[420822683,1776585831792,500.0,0.00032877,120]
[420822684,1776585839008,500.0,0.00032877,120]
[420822685,1776585847508,500.0,0.00032877,120]
[420822686,1776585853363,500.0,0.00032877,120]
[420822687,1776585859663,500.0,0.00032877,120]
[420822688,1776585867402,500.0,0.00032877,120]
[420822689,1776585867891,150.0,8.423e-05,2]
[420822690,1776585873863,500.0,0.00032877,120]
[420822691,1776585876198,930.8532,7.922e-05,2]
[420822692,1776585880038,500.0,0.00032877,120]
[420822693,1776585887552,500.0,0.00032877,120]
[420822694,1776585892908,1567.07,0.00032877,120]
[420822695,1776585899082,1567.08,0.00032877,120]
[420822696,1776585899464,500.0,0.00032877,120]
[420822697,1776585905422,1567.08,0.00032877,120]
[420822698,1776585905791,500.0,0.00032877,120]
[420822699,1776585911255,1567.08,0.00032877,120]
[420822700,1776585912460,500.0,0.00032877,120]
[420822701,1776585917011,1567.08,0.00032877,120]
[420822702,1776585922862,1567.08,0.00032877,120]
[420822703,1776585923098,522.7,0.00032877,120]
[420822704,1776585928543,1567.08,0.00032877,120]
[420822705,1776585933982,1567.08,0.00032877,120]
[420822706,1776585939841,1567.08,0.00032877,120]
[420822707,1776585945141,1567.08,0.00032877,120]
[420822708,1776585952202,1567.08,0.00032877,120]
[420822709,1776585957906,1038.39,0.00032877,120]
[420822710,1776585963550,1567.08,0.00032877,120]
[420822711,1776585969906,1567.08,0.00032877,120]
[420822712,1776585975258,1567.08,0.00032877,120]
[420822713,1776585981342,1567.08,0.00032877,120]
[420822714,1776585987401,1567.08,0.00032877,120]
[420822715,1776585993237,1567.08,0.00032877,120]
[420822716,1776585998692,1567.08,0.00032877,120]
[420822717,1776586004966,1567.08,0.00032877,120]
[420822718,1776586009505,1567.08,0.00032877,120]
[420822719,1776586016973,1567.08,0.00032877,120]
[420822720,1776586020687,1567.08,0.00032877,120]
[420822721,1776586030081,1567.08,0.00032877,120]
[420822722,1776586032672,1567.08,0.00032877,120]
[420822723,1776586038226,1567.08,0.00032877,120]
[420822724,1776586045021,1567.08,0.00032877,120]
[420822725,1776586050126,1567.08,0.00032877,120]
[420822726,1776586055354,1567.08,0.00032877,120]
[420822727,1776586062167,1567.08,0.00032877,120]
[420822728,1776586068243,1567.08,0.00032877,120]
[420822729,1776586073748,1567.08,0.00032877,120]
[420822730,1776586079441,1567.08,0.00032877,120]
[420822731,1776586085706,1567.08,0.00032877,120]
[420822732,1776586091293,1567.08,0.00032877,120]
[420822740,1776586231754,-669.1468,7.922e-05,2]
[420822741,1776586231765,-150.0,7.964e-05,2]
[420822742,1776586231774,-150.0,8.22e-05,2]
[420822743,1776586231784,-150.0,8.52e-05,2]
[420822745,1776586231794,-1683.57,8.691e-05,2]
[420822747,1776586231804,-169.389,8.691e-05,2]
[420822748,1776586231814,-194.80530298,8.714e-05,2]
[420822749,1776586231826,-300.0,8.714e-05,2]
[420822750,1776586231836,-155.87277336,8.714e-05,2]
[420822751,1776586231847,-398.0,8.725e-05,2]
[420822752,1776586231857,-444.0,8.726e-05,2]
[420822753,1776586231867,-300.0,8.751e-05,2]
[420822754,1776586231877,-398.0,8.752e-05,2]
[420822755,1776586231887,-300.0,8.766e-05,2]
[420822756,1776586231896,-9721.304,8.768e-05,2]
[420822757,1776586231908,-2500.0,8.768e-05,2]
[420822758,1776586231917,-339939.9067,8.768e-05,2]
[420822759,1776586231928,-150.0,8.78e-05,2]
[420822760,1776586231938,-398.0,8.813e-05,2]
[420822761,1776586231948,-398.0,8.82e-05,2]
[420822762,1776586231958,-398.0,8.821e-05,2]
[420822763,1776586231968,-398.0,8.824e-05,2]
[420822764,1776586231977,-187.83663844,8.836e-05,2]
[420822765,1776586231987,-398.0,8.841e-05,2]
[420822766,1776586231996,-150.0,8.842e-05,2]
[420822767,1776586232006,-500.0,8.843e-05,2]
[420822768,1776586232016,-500.0,8.843e-05,2]
[420822769,1776586232026,-504.65209864,8.843e-05,2]
[420822770,1776586232035,-500.0,8.843e-05,2]
[420822771,1776586232045,-500.0,8.843e-05,2]
[420822772,1776586232054,-500.0,8.843e-05,2]
[420822773,1776586232063,-500.0,8.843e-05,2]
[420822774,1776586232074,-150.0,8.849e-05,2]
[420822775,1776586232083,-398.0,8.853e-05,2]
[420822776,1776586232096,-500.0,8.867e-05,2]
[420822777,1776586232106,-500.0,8.867e-05,2]
[420822778,1776586232116,-536.47333932,8.867e-05,2]
[420822779,1776586232126,-500.0,8.867e-05,2]
[420822781,1776586232136,-500.0,8.867e-05,2]
[420822782,1776586232146,-500.0,8.867e-05,2]
[420822783,1776586232157,-500.0,8.867e-05,2]
[420822784,1776586232167,-500.0,8.867e-05,2]
[420822785,1776586232177,-500.0,8.867e-05,2]
[420822787,1776586232187,-500.0,8.867e-05,2]
[420822789,1776586232196,-500.0,8.867e-05,2]
[420822790,1776586232206,-500.0,8.867e-05,2]
[420822791,1776586232216,-500.0,8.867e-05,2]
[420822792,1776586232228,-500.0,8.867e-05,2]
[420822794,1776586232238,-563.93547848,8.867e-05,2]
[420822796,1776586232247,-500.0,8.867e-05,2]
[420822798,1776586232257,-500.0,8.867e-05,2]
[420822799,1776586232267,-500.0,8.867e-05,2]
[420822800,1776586232276,-500.0,8.867e-05,2]
[420822801,1776586232286,-500.0,8.867e-05,2]
[420822802,1776586232296,-500.0,8.867e-05,2]
[420822803,1776586232306,-500.0,8.867e-05,2]
[420822804,1776586232316,-500.0,8.867e-05,2]
[420822805,1776586232328,-500.0,8.867e-05,2]
[420822806,1776586232338,-500.0,8.867e-05,2]
[420822807,1776586232348,-428.16976725,8.867e-05,2]
[420822808,1776586232358,-500.0,8.867e-05,2]
[420822809,1776586232369,-500.0,8.867e-05,2]
[420822810,1776586232378,-500.0,8.867e-05,2]
[420822811,1776586232388,-500.0,8.867e-05,2]
[420822812,1776586232397,-160.56833518,8.867e-05,2]
[420822813,1776586232407,-500.0,8.867e-05,2]
[420822814,1776586232416,-160.2669701,8.867e-05,2]
[420822815,1776586232426,-292.54185534,8.867e-05,2]
[420822816,1776586232435,-339.02870549,8.867e-05,2]
[420822817,1776586232445,-398.0,8.875e-05,2]
[420822818,1776586232454,-398.0,8.884e-05,2]
[420822819,1776586232464,-398.0,8.9e-05,2]
[420822820,1776586232474,-1000.0,8.9e-05,3]
[420822821,1776586232485,-1600.0,8.912e-05,2]
[420822822,1776586232495,-398.0,8.941e-05,2]
[420822823,1776586232504,-398.0,8.944e-05,2]
[420822824,1776586232513,-20162.81,8.948e-05,2]
[420822825,1776586232523,-398.0,8.951e-05,2]
[420822826,1776586232532,-398.0,8.957e-05,2]
[420822827,1776586232541,-150.0,8.976e-05,2]
[420822828,1776586232551,-398.0,8.976e-05,2]
[420822829,1776586232560,-398.0,8.979e-05,2]
[420822830,1776586232570,-578.20924308,8.981e-05,2]
[420822831,1776586232579,-201.93286099,8.981e-05,2]
[420822832,1776586232589,-187.78006525,8.981e-05,2]
[420822833,1776586232598,-151.0,8.981e-05,2]
[420822834,1776586232608,-174.61919141,8.981e-05,2]
[420822835,1776586232618,-328.99786724,8.981e-05,2]
[420822836,1776586232628,-743.50770149,8.981e-05,2]
[420822837,1776586232637,-225.22125946,8.981e-05,2]
[420822838,1776586232647,-398.0,8.992e-05,2]
[420822839,1776586232656,-398.0,8.994e-05,2]
[420822840,1776586232666,-398.0,8.994e-05,2]
[420822841,1776586232676,-2100.0,9e-05,3]
[420822842,1776586232686,-398.0,9.008e-05,2]
[420822843,1776586232695,-151.0,9.036e-05,2]
[420822844,1776586232705,-398.0,9.045e-05,2]
[420822845,1776586232714,-398.0,9.069e-05,2]
[420822846,1776586232724,-398.0,9.09e-05,2]
[420822847,1776586232733,-151.0,9.091e-05,2]
[420822848,1776586232743,-364.31,9.098e-05,2]
[420822849,1776586232753,-150.0,9.173e-05,2]
[420822850,1776586232763,-150.0,9.181e-05,2]
[420822851,1776586232783,-2427.19,9.218e-05,2]
[420822852,1776586232793,-11142.53,9.228e-05,2]
[420822853,1776586232803,-3929.48,9.244e-05,2]
[420822854,1776586232814,-2000.0,9.247e-05,2]
[420822855,1776586232824,-1619.0,9.278e-05,5]
[420822856,1776586232834,-500.50479008,9.391e-05,2]
[420822857,1776586232844,-1062.2908788,9.391e-05,2]
[420822858,1776586232854,-500.0,9.391e-05,2]
[420822859,1776586232864,-501.74814329,9.391e-05,2]
[420822860,1776586232874,-501.6632252,9.391e-05,2]
[420822861,1776586232883,-150.0,9.42e-05,2]
[420822862,1776586232893,-5961.0203085,9.448e-05,2]
[420822863,1776586232902,-637.797887,9.448e-05,2]
[420822864,1776586232912,-8180.32857697,9.47e-05,2]
[420822865,1776586232927,-18279.56331056,9.47e-05,2]
[420822866,1776586232937,-1698.0,9.511e-05,5]
[420822867,1776586232946,-1152.0,9.511e-05,5]
[420822868,1776586232955,-176.82638054,9.529e-05,2]
[420822869,1776586232964,-181.08010149,9.529e-05,2]
[420822870,1776586232974,-771.01748645,9.529e-05,2]
[420822871,1776586232983,-500.0,9.56e-05,2]
[420822872,1776586232993,-500.0,9.56e-05,2]
[420822873,1776586233002,-500.0,9.56e-05,2]
[420822874,1776586233011,-500.0,9.56e-05,2]
[420822875,1776586233021,-627.97306217,9.56e-05,2]